Cogmind - Beta 10.2 @@@ ROGUE MODE // 2020.12.30 @ 22:17:56 Player: Wakanaka Result: Destroyed by S-10 Pest with Light Assault Rifle Performance ------------- Evolutions (0) 0 Regions Visited (1) 200 Robots Destroyed (10) 50 Value Destroyed (329) 329 Prototype IDs (0) 0 Alien Tech Used (0) 0 Bonus (0) 0 TOTAL SCORE: 579 Bonus ------- None Cogmind --------- Core Integrity 0/250 Matter 300/300 Energy 56/250 System Corruption 0% Temperature Cool (0) Movement Walking (120) Location -10/Materials Parts ------- > --- POWER (1) -------- Ion Engine > --- PROPULSION (2) --- Aluminum Leg Aluminum Leg > --- UTILITY (2) ------ Heat Sink Small Storage Unit > --- WEAPON (2) ------- Small Laser Light Assault Rifle > --- INVENTORY (6) ---- Aluminum Leg Aluminum Leg Small Laser Peak State ------------ > --- POWER ------------ Ion Engine > --- PROPULSION ------- Aluminum Leg Aluminum Leg > --- UTILITY ---------- Heat Sink Small Storage Unit > --- WEAPON ----------- Small Laser Light Assault Rifle > --- INVENTORY -------- Aluminum Leg Aluminum Leg Small Laser [Rating: 7] Favorites ----------- Power Ion Engine Engine Ion Engine Propulsion Aluminum Leg Leg Aluminum Leg Utility Small Storage Unit Device Heat Sink Storage Small Storage Unit Weapon Small Laser Energy Gun Small Laser Ballistic Gun Light Assault Rifle Build | -11 -10 ------- Run | Scr Mat Slots Evolved . | . . Power . | . . Propulsion . | . . Utility . | . . Weapon . | . . Parts Attached 15 | 6 9 Power 3 | 1 2 Engine 3 | 1 2 Core . | . . Reactor . | . . Propulsion 4 | 2 2 Treads . | . . Leg 4 | 2 2 Wheel . | . . Hover . | . . Flight . | . . Utility 2 | 1 1 Device 1 | . 1 Storage 1 | 1 . Processor . | . . Hackware . | . . Protection . | . . Artifact . | . . Weapon 6 | 2 4 Energy Gun 5 | 2 3 Energy Cannon . | . . Ballistic Gun 1 | . 1 Ballistic Cannon . | . . Launcher . | . . Special Weapon . | . . Impact Weapon . | . . Slashing Weapon . | . . Piercing Weapon . | . . Special Melee Weapon . | . . Unidentified Prototypes . | . . Parts Lost 6 | . 6 Power 2 | . 2 Propulsion 1 | . 1 Utility . | . . Weapon 3 | . 3 Highest Loss Streak 6 | . 6 Average Slot Usage (%) 75 | . 75 Engine 9 | . 9 Leg 25 | . 25 Device 3 | . 3 Storage 14 | . 14 Energy Gun 16 | . 16 Ballistic Gun 6 | . 6 Naked Turns . | . . Heaviest Build 12 | 12 12 Greatest Support 20 | 20 20 Greatest Overweight (x) . | . . Average Overweight (x) . | . . Largest Inventory Capacity 6 | 6 6 Average Capacity 5 | 4 6 Most Carried 3 | 3 3 Average Carried 1 | 1 1 Final Capacity 6 | 6 6 Final Carried 3 | 2 3 Class Distribution -------------------- 100% | Mutant Dominant Class ---------------- Mutant | -10/Materials Resources | -11 -10 ----------- Run | Scr Mat Matter Collected 437 | 249 188 Remotely . | . . Salvage Created 374 | . 374 Parts 16 | . 16 Haulers Intercepted . | . . Recyclers Shooed . | . . Parts Field Recycled . | . . Retrieved Matter . | . . Parts Self-Destructed . | . . Prevented . | . . Kills | -11 -10 ------- Run | Scr Mat Combat Hostiles Destroyed 10 | . 10 Guns 10 | . 10 Classes Destroyed 2 | . 2 Swarmer 1 | . 1 Grunt 9 | . 9 Best Kill Streak 6 | . 6 Combat Bots Only 6 | . 6 Max Kills in Single Turn 1 | . 1 Gunslinging . | . . Exploded . | . . Melee . | . . Uniques/NPCs Destroyed . | . . Combat | -11 -10 -------- Run | Scr Mat Damage Taken 801 | . 801 Core 251 | . 251 Absorbed by Shields . | . . Core Remaining (%) 100 | 100 . Volleys Fired 38 | . 38 Largest 2 | . 2 Hottest 90 | . 90 Shots Fired 61 | . 61 Gun 61 | . 61 Cannon . | . . Launcher . | . . Special . | . . Kinetic 25 | . 25 Thermal 36 | . 36 Explosive . | . . Electromagnetic . | . . Robot Hit Streak 14 | . 14 Robot Miss Streak 2 | . 2 Penetration Max . | . . Secondary Targets 1 | . 1 Max Gunslinging Chain 1 | . 1 Shots Hit Robots 46 | . 46 Core Hits 20 | . 20 Critical Hits 1 | . 1 Critical Kills 1 | . 1 Critical Parts Destroyed . | . . Melee Attacks . | . . Impact . | . . Slashing . | . . Piercing . | . . Sneak Attacks . | . . Combat Hostiles . | . . Follow-up Attacks . | . . Damage Inflicted 495 | . 495 Guns 495 | . 495 Cannons . | . . Explosions . | . . Melee . | . . Ramming . | . . Kinetic 165 | . 165 Thermal 330 | . 330 Explosive . | . . Electromagnetic . | . . Impact . | . . Slashing . | . . Piercing . | . . Highest Corruption . | . . Average Corruption . | . . Corruption Purged . | . . Overload Shots . | . . Overflow Damage . | . . Projectiles . | . . Explosions . | . . Melee . | . . Knockbacks . | . . Impact . | . . Kinetic . | . . Secondary . | . . Self-Inflicted Damage . | . . Shots . | . . Rammed . | . . Targets Rammed . | . . Kicked . | . . Crushed . | . . Highest Temperature 348 | . 348 Average Temperature 137 | . 137 Received Heat Transfer 432 | . 432 Effects 1 | . 1 Matter Decay 1 | . 1 Siege Activations . | . . Robots Corrupted . | . . Combat Hostiles . | . . Parts Fried . | . . Impact Corruptions . | . . Robots Melted . | . . Combat Hostiles . | . . Parts Melted 1 | . 1 Heat Transferred 809 | . 809 Parts Sabotaged . | . . Parts Stolen . | . . Parts Stripped . | . . Power Chain Reactions . | . . Missiles Intercepted . | . . Alert | -11 -10 ------- Run | Scr Mat Peak Influence 195 | . 195 Initial . | . . Average 64 | . 80 Maximum Alert Level . | . . Low Security (%) 100 | 100 100 Level 1 . | . . Level 2 . | . . Level 3 . | . . Level 4 . | . . Level 5 . | . . High Security . | . . Max Security . | . . Squads Dispatched 3 | . 3 Investigation 1 | . 1 Extermination . | . . Reinforcement 2 | . 2 Assault . | . . Garrison . | . . Intercept . | . . Construction Impeded . | . . Haulers Reinforced . | . . Stealth | -11 -10 --------- Run | Scr Mat Distress Signals 3 | . 3 Communications Jammed . | . . Distress Signals . | . . Times Spotted 17 | . 17 Peak Tracking Total 9 | . 9 Tactical Retreats . | . . Traps | -11 -10 ------- Run | Scr Mat Traps Triggered . | . . Indirectly . | . . Trap Hack Attempts . | . . Triggered . | . . Disarmed . | . . Reprogrammed . | . . Reused . | . . Traps Extracted . | . . Installed . | . . Triggered . | . . Machines | -11 -10 ---------- Run | Scr Mat Machines Disabled . | . . Max in Single Turn . | . . Machines Sabotaged . | . . Garrisons Compromised . | . . Overloaded Fab Kills . | . . Fab Network Shutdowns . | . . Hacking | -11 -10 --------- Run | Scr Mat Machines Accessed 1 | . 1 Terminals 1 | . 1 Fabricators . | . . Repair Stations . | . . Recycling Units . | . . Scanalyzers . | . . Garrison Access . | . . Total Hacks 2 | . 2 Successful . | . . Failed 2 | . 2 Catastrophic 2 | . 2 Database Lockouts . | . . Manual 2 | . 2 Terminals 2 | . 2 Fabricators . | . . Repair Stations . | . . Recycling Units . | . . Scanalyzers . | . . Garrison Access . | . . Terminal Hacks . | . . Fabricator Hacks . | . . Repair Station Hacks . | . . Recycling Unit Hacks . | . . Scanalyzer . | . . Garrison Access Hacks . | . . Unauthorized Hacks . | . . Terminals . | . . Fabricators . | . . Repair Stations . | . . Recycling Units . | . . Scanalyzers . | . . Garrison Access . | . . Data Cores Recovered . | . . Used . | . . Hacking Detections 1 | . 1 Full Trace Events 1 | . 1 Feedback Events . | . . Feedback Blocked . | . . Robot Schematics Acquired . | . . Robots Built . | . . Matter . | . . Time . | . . Total Robot Build Rating . | . . Part Schematics Acquired . | . . Parts Built . | . . Matter . | . . Time . | . . Total Part Build Rating . | . . Parts Repaired . | . . Time . | . . Parts Recycled . | . . Recycled Matter . | . . Retrieved Matter . | . . Retrieved Components . | . . Parts Scanalyzed . | . . Part Schematics Acquired . | . . Parts Damaged . | . . Bothacking | -11 -10 ------------ Run | Scr Mat Used RIF Installer . | . . Robots Hacked . | . . Non-combat . | . . Combat . | . . Robot Hacks Applied . | . . Relay Couplers Released . | . . Robots Rewired . | . . Allies Hacked . | . . Hacks Repelled . | . . Allies | -11 -10 -------- Run | Scr Mat Total Allies . | . . Largest Group . | . . Highest-Rated Group . | . . Highest-Rated Ally . | . . Total Orders . | . . Ally Attacks . | . . Total Damage . | . . Kills . | . . Allies Corrupted . | . . Allies Melted . | . . Intel | -11 -10 ------- Run | Scr Mat Robot Analysis Total . | . . Derelict Logs Recovered . | . . Drone Launches . | . . Drone Recoveries . | . . Exploration | -11 -10 ------------- Run | Scr Mat Turns Passed 239 | 48 191 Spaces Moved 93 | 32 61 Core 2 | 2 . Treads . | . . Legs 91 | 30 61 Wheels . | . . Hover . | . . Flight . | . . Fastest Speed 50 | 50 120 Average Speed 118 | 115 120 Slowest Speed 120 | 120 120 Overloaded Moves . | . . Propulsion Burnouts . | . . Robots Hopped . | . . Cave-ins Triggered . | . . Exploration Rate (%) 7 | 3 12 Regions Visited 1 Branch Regions . Pre-discovered Areas . | . . Known Exits Taken . | . . Unknown Exits Taken 1 | 1 . Scrap Searched . | . . Spaces Dug . | . . Terrain Destroyed . | . . Melee . | . . Projectile . | . . AOE . | . . Terrain Rammed . | . . Walls Destroyed . | . . Machines Disabled . | . . Actions | -11 -10 --------- Run | Scr Mat Total 159 | 40 119 Wait 10 | . 10 Move 92 | 31 61 Hop . | . . Pick Up 4 | 3 1 Fast Attach 10 | 5 5 Attach 3 | 1 2 Detach . | . . Swap 2 | . 2 Drop . | . . Fire 38 | . 38 Melee . | . . Ram . | . . Kick . | . . Crush . | . . Escape Stasis . | . . Rewire . | . . Trap . | . . Miscellaneous . | . . Route ------- -11/Scrapyard -10/Materials History --------- Turn | Location | Event 7 | -11/Scrapyard | Discovered new exit (range 15) 49 | -11/Scrapyard | Entered Materials 168 | -10/Materials | Core integrity fell below 50% 194 | -10/Materials | Core integrity fell below 20% 216 | -10/Materials | Lost 6 parts (2p1n3w) 240 | -10/Materials | Destroyed by S-10 Pest with Light Assault Rifle Last Messages --------------- 00184_ Acquired 1 matter. 00184_ G-34 Mercenary suffers critical hit. 00184_ G-34 Mercenary destroyed. 00185_ Acquired 1 matter. 00185_ Aluminum Leg destroyed. 00185_ R-06 Scavenger collects Aluminum Leg. 00187_ Acquired 1 matter. 00190_ G-34 Mercenary destroyed. 00191_ Acquired 1 matter. 00196_ Acquired Sml. Laser. 00199_ Acquired Heat Sink. 00216_ G-47 Trooper destroyed. 00220_ Acquired Aluminum Leg. 00224_ Acquired 13 matter. 00233_ Acquired 22 matter. 00233_ K-01 Serf collects debris. 00235_ Acquired Ion Engine. 00236_ K-01 Serf collects debris. 00236_ W-16 Scout sends out distress signal. 00237_ Acquired 32 matter. Map ----- +----------------------------------------------------+ | ??????????????????????# ## #??????????????????? | | ??????????????????????# ## #??????????????????? | | ?????????????????????## ## #??????????????????? | | ?????????????????????# # #??????????????????? | | ?????????????????????# # #??????????????????? | | ?????????????????????# # " #??????????????????? | | ?????????????????????# + T #??????????????????? | | ?????????????????????# # " #??????????????????? | | ?????????????????????# # #??????????????????? | | ????????????????????## ######??????????????????? | | ??????????#######+### #??????????????????????? | | ????????? #??????????????????????? | | ????????? #??????????????????????? | | ????????? k #######????????????????? | | ??????????########### ?????????? | | ????????????????????## ########????????????????? | | ?????????????????????# #???????????????????????? | | ?????????????????????# #######?????????????????? | | ?????????????????????# ## #?????????????????? | | ?????????????????????# ## #?????????????????? | | ?????????????????????# ## #?????????????????? | | ????????????????????##t ## #?????????????????? | | ????????????????????# %# #?????????????????? | | ??????????????###+### =# #?????????????????? | | ??????????????# %% +!! #?????????????????? | | ??????????????# %@# #?????????????????? | | ??????????????# """ %#! #?????????????????? | | ??????????????# "T ########?????????????????? | | ??????????????# """ #????????????????????????? | | ??????????????# s a #????????????????????????? | | ??????????????# s #????????????????????????? | | ??????????????# """ #????????????????????????? | | ??????????????# """ #????????????????????????? | | ??????????????# """ #????????????????????????? | | ??????????????# ?? #????????????????????????? | | ??????????????# ??? ????????????????????????? | | ??????????????????? #????????????????????????? | | ???????????????????#####?????????????????????????? | | ?????????????????????????????????????????????????? | | ?????????????????????????????????????????????????? | | ?????????????????????????????????????????????????? | | ?????????????????????????????????????????????????? | | ?????????????????????????????????????????????????? | | ?????????????????????????????????????????????????? | | ?????????????????????????????????????????????????? | | ?????????????????????????????????????????????????? | | ?????????????????????????????????????????????????? | | ?????????????????????????????????????????????????? | | ?????????????????????????????????????????????????? | | ?????????????????????????????????????????????????? | +----------------------------------------------------+ Best States ------------- Heat Dissipation 35 Energy Generation 10 Energy Capacity 250 Matter Stores 300 Matter Capacity 300 Sight Range 16 Terrain Scan Density 10 Evasion (%) 40 Item Schematics ----------------- None Robot Schematics ------------------ None Fabricated ------------ Nothing Alien Tech Used ----------------- None Achievements -------------- None Challenges ------------ None Game ------ Seed DecoyResetMicrothruster Manual? 0 Play Time 00:05:07 Cumulative 18.5 hours Start 2020.12.30 @ 22:08:14 End 2020.12.30 @ 22:17:56 Sessions 1 Manual Loads 0 Difficulty Rogue Special Mode None Game No. 23 Rogue 23 Adventurer 0 Explorer 0 Win Type - Total 0 Types 0/0/0/0/0/0/0/0/0 Lore% 18 Gallery% 24 Achievement% 18 Wizard Run 0 Options --------- ASCII 0 Keyboard 0 Movement Mouse Keybinds 0 Fullscreen 1 Font 18/Terminus Map View 76x50 Tactical HUD 1 Map Filters NONE Filters NONE Steam 1 RUN: 19021195-7f8f-4c5e-8d4a-0ef6c43a326d